fUSD/lending_fUSD_20240901
["ID","MTS","AMOUNT","RATE_DAILY","PERIOD"]
[336790877,1725153032234,-150.0,0.0001274,2]
[336790878,1725153032244,-150.0,0.00012741,2]
[336790879,1725153032255,-150.0,0.00012742,2]
[336790880,1725153032265,-150.0,0.00012745,2]
[336790881,1725153032274,-150.0,0.00012751,2]
[336790882,1725153032283,-150.0,0.00012754,2]
[336790883,1725153032293,-150.0,0.00012757,2]
[336790884,1725153032302,-150.0,0.00012761,2]
[336790885,1725153032311,-1295.93405813,0.00012761,2]
[336790886,1725153032320,-150.0,0.00012762,2]
[336790887,1725153032329,-150.0,0.00012762,2]
[336790888,1725153032339,-150.0,0.00012763,2]
[336790889,1725153032348,-150.0,0.00012763,2]
[336790890,1725153032357,-150.0,0.0001277,2]
[336790891,1725153032367,-150.0,0.00012771,2]
[336790892,1725153032376,-150.0,0.00012771,2]
[336790893,1725153032386,-150.0,0.00012773,2]
[336790894,1725153032395,-150.0,0.00012784,2]
[336790895,1725153032404,-150.0,0.00012794,2]
[336790896,1725153032413,-150.0,0.00012797,2]
[336790897,1725153032422,-150.0,0.00012805,2]
[336790898,1725153032431,-150.0,0.00012808,2]
[336790899,1725153032441,-150.0,0.00012812,2]
[336790900,1725153032451,-150.0,0.00012818,2]
[336790901,1725153032463,-150.0,0.0001282,2]
[336790902,1725153032473,-150.0,0.0001282,2]
[336790904,1725153032482,-150.0,0.00012823,2]
[336790905,1725153032492,-150.0,0.00012825,2]
[336790906,1725153032501,-150.0,0.00012828,2]
[336790907,1725153032511,-150.0,0.00012832,2]
[336790908,1725153032521,-150.0,0.00012832,2]
[336790909,1725153032530,-150.0,0.00012834,2]
[336790910,1725153032540,-150.0,0.00012835,2]
[336790911,1725153032549,-150.0,0.00012835,2]
[336790912,1725153032558,-150.0,0.00012836,2]
[336790913,1725153032567,-150.0,0.00012837,2]
[336790914,1725153032576,-150.0,0.00012838,2]
[336790916,1725153032585,-150.0,0.00012841,2]
[336790917,1725153032594,-248.38,0.00012847,2]
[336790918,1725153032603,-150.0,0.00012848,2]
[336790919,1725153032612,-150.0,0.00012849,2]
[336790920,1725153032621,-150.0,0.00012849,2]
[336790921,1725153032630,-150.0,0.0001285,2]
[336790922,1725153032640,-150.0,0.0001285,2]
[336790923,1725153032649,-150.0,0.00012853,2]
[336790924,1725153032659,-150.0,0.00012854,2]
[336790925,1725153032668,-150.0,0.00012856,2]
[336790926,1725153032677,-150.0,0.00012862,2]
[336790927,1725153032686,-150.0,0.00012865,2]
[336790928,1725153032695,-150.0,0.00012866,2]
[336790929,1725153032705,-150.0,0.00012869,2]
[336790930,1725153032714,-150.0,0.00012871,2]
[336790931,1725153032723,-150.0,0.00012876,2]
[336790932,1725153032732,-150.0,0.00012878,2]
[336790933,1725153032741,-150.0,0.00012879,2]
[336790934,1725153032750,-150.0,0.00012879,2]
[336790935,1725153032760,-150.0,0.00012885,2]
[336790936,1725153032770,-150.0,0.00012885,2]
[336790937,1725153032779,-1397.4458,0.00012886,2]
[336790938,1725153032789,-150.0,0.00012888,2]
[336790939,1725153032798,-150.0,0.00012889,2]
[336790940,1725153032807,-150.0,0.0001289,2]
[336790941,1725153032816,-500.0,0.00012896,2]
[336790942,1725153032830,-150.0,0.00012898,2]
[336790943,1725153032840,-150.0,0.00012898,2]
[336790944,1725153032849,-150.0,0.000129,2]
[336790945,1725153032859,-150.0,0.000129,2]
[336790946,1725153032868,-176.90874096,0.000129,2]
[336790947,1725153032878,-2062.46127258,0.000129,2]
[336790948,1725153032887,-9045.69248418,0.000129,2]
[336790949,1725153032906,-2638.16445635,0.000129,2]
[336790950,1725153032927,-8004.09835654,0.000129,2]
[336790951,1725153032950,-1682.35820237,0.000129,2]
[336790952,1725153032969,-8692.8582987,0.000129,2]
[336790953,1725153032979,-156.7847564,0.000129,2]
[336790954,1725153032988,-286.94285339,0.000129,2]
[336790955,1725153032997,-174.90327436,0.000129,2]
[336790956,1725153033007,-150.0,0.00012903,2]
[336790957,1725153033016,-150.0,0.00012904,2]
[336790958,1725153033025,-150.0,0.00012907,2]
[336790959,1725153033035,-150.0,0.00012909,2]
[336790960,1725153033045,-150.0,0.00012921,2]
[336790961,1725153033055,-150.0,0.00012936,2]
[336790962,1725153033064,-150.0,0.00012937,2]
[336790963,1725153033074,-150.0,0.0001294,2]
[336790964,1725153033083,-150.0,0.00012941,2]
[336790965,1725153033093,-150.0,0.00012941,2]
[336790966,1725153033104,-150.0,0.00012942,2]
[336790967,1725153033114,-150.0,0.00012944,2]
[336790968,1725153033123,-150.0,0.00012948,2]
[336790969,1725153033133,-150.0,0.0001295,2]
[336790970,1725153033143,-150.0,0.0001295,2]
[336790971,1725153033152,-150.0,0.00012952,2]
[336790972,1725153033162,-150.0,0.00012953,2]
[336790973,1725153033171,-150.0,0.00012955,2]
[336790974,1725153033181,-150.0,0.0001296,2]
[336790975,1725153033190,-150.0,0.00012961,2]
[336790976,1725153033200,-150.0,0.00012972,2]
[336790977,1725153033210,-500.0,0.00012973,2]
[336790978,1725153033219,-150.0,0.00012974,2]
[336790979,1725153033229,-150.0,0.00012975,2]
[336790980,1725153033238,-150.0,0.00012976,2]
[336790981,1725153033247,-23225.58709869,0.00012976,2]
[336790982,1725153033258,-150.0,0.00012977,2]
[336790983,1725153033270,-150.0,0.00012981,2]
[336790984,1725153033278,-150.0,0.00012984,2]
[336790985,1725153033287,-150.0,0.00012986,2]
[336790986,1725153033296,-76096.0,0.00012986,2]
[336790987,1725153033306,-433.0,0.00012986,2]
[336790988,1725153033316,-274.4076759,0.00012986,2]
[336790989,1725153033325,-150.0,0.00012993,2]
[336790990,1725153033335,-150.0,0.00012994,2]
[336790991,1725153033344,-150.0,0.00012997,2]
[336790992,1725153033354,-150.0,0.00012998,2]
[336790993,1725153033363,-170.84075263,0.00012999,2]
[336790994,1725153033373,-602.0,0.00012999,2]
[336790995,1725153033383,-191.7740039,0.00013,2]
[336790996,1725153033393,-45500.26276802,0.00013,2]
[336790997,1725153033406,-26978.14290206,0.00013,2]
[336790998,1725153033418,-76329.67223673,0.00013,2]
[336791000,1725153038202,-250.0,0.00011861,2]
[336791001,1725153038213,-372.21983407,0.00013,2]
[336791002,1725153038224,-2919.9,0.00013,2]
[336791003,1725153038236,-570.55999995,0.00013,2]
[336791004,1725153038251,-5255.92241343,0.00013,2]
[336791005,1725153038263,-1659.66309036,0.00013,2]
[336791006,1725153038274,-1780.0858619,0.00013,2]
[336791007,1725153038306,-579.15528227,0.00013,2]
[336791008,1725153038327,-17964.4937738,0.00013,2]
[336791009,1725153038339,-876.60159755,0.00013,2]
[336791010,1725153038351,-777.85233737,0.00013,2]
[336791011,1725153038363,-404.25282541,0.00013,2]
[336791012,1725153038376,-262.85438619,0.00013,2]
[336791013,1725153038429,-3161.98146989,0.00013,2]
[336791014,1725153038440,-754.9956438,0.00013,2]
[336791015,1725153038492,-568.94985213,0.00013,2]
[336791016,1725153038503,-453.30570109,0.00013,2]
[336791017,1725153038514,-1042.82955653,0.00013,2]
[336791144,1725153040217,-254.25,0.000129,2]
[336791147,1725153040229,-90.96441966,0.000129,2]
[336791149,1725153040239,-325.5116143,0.00013,2]
[336791151,1725153040249,-377.63072068,0.00013,2]
[336791156,1725153040286,-9096.64373114,0.00013,2]
[336791158,1725153040297,-8947.21879473,0.00013,2]
[336791160,1725153040309,-8943.78386462,0.00013,2]
[336791162,1725153040321,-9077.54866152,0.00013,2]
[336791165,1725153040333,-8943.84023489,0.00013,2]
[336791167,1725153040344,-5228.48614854,0.00013,2]
[336791169,1725153040356,-587290.9551444,0.00013,2]
[336791171,1725153040368,-139890.60302102,0.00013,2]
[336791173,1725153040379,-893.72550605,0.00013,2]
[336791175,1725153040395,-350.86142961,0.00013,2]
[336791179,1725153040420,-656.14,0.00013,2]
[336791181,1725153040432,-5989.40000001,0.00013,2]
[336791183,1725153040444,-38586.68026777,0.00013,2]
[336791185,1725153040454,-424267.535258,0.00013,2]
[336791188,1725153040466,-606.43908688,0.00013,2]
[336791191,1725153040493,-44653.28265325,0.00013,2]
[336791193,1725153040504,-8144.42314774,0.00013,2]
[336791196,1725153040519,-281.186742,0.00013,2]
[336791200,1725153040553,-2607.20000779,0.00013,2]
[336791208,1725153040618,-505.2624392,0.00013,2]
[336791210,1725153040630,-752.06647049,0.00013,2]
[336791212,1725153040641,-1600.65,0.00013,2]
[336791215,1725153040652,-703.90320097,0.00013,2]
[336791217,1725153040663,-539.06283141,0.00013,2]
[336791219,1725153040675,-39212.85223734,0.00013,2]
[336791221,1725153040686,-385.66261705,0.00013,2]
[336791478,1725153043141,-494.33920324,0.00013,2]
[336791480,1725153043152,-3087.7847,0.00013,2]
[336791483,1725153043164,-24946.14258742,0.00013,2]
[336791489,1725153043210,-4616.80177371,0.00013,2]
[336791491,1725153043221,-1311.45,0.00013,2]
[336791503,1725153043331,-9022.73171167,0.00013,2]
[336791505,1725153043342,-1279.97005618,0.00013,2]
[336791507,1725153043353,-1647.90000071,0.00013,2]
[336791509,1725153043365,-1575.12680245,0.00013,2]
[336791511,1725153043376,-5507.36088862,0.00013,2]
[336791513,1725153043387,-632.52348141,0.00013,2]
[336791546,1725153043714,-742.78513496,0.00013,2]
[336791549,1725153043729,-31029.00000004,0.00013,2]
[336791551,1725153043740,-3395.57123752,0.00013,2]
[336791553,1725153043751,-1625.7938459,0.00013,2]
[336791555,1725153043761,-296.18044634,0.00013,2]
[336791787,1725153046124,-27392.8904637,0.00013,2]
[336791790,1725153046136,-1867.26480771,0.00013,2]
[336791792,1725153046147,-3095.56445462,0.00013,2]
[336791794,1725153046158,-278.7310255,0.00013,2]
[336791796,1725153046169,-2311.24974926,0.00013,2]
[336791800,1725153046198,-2806.90524355,0.00013,2]
[336791809,1725153046264,-856.2321508,0.00013,2]
[336791811,1725153046275,-56759.56158997,0.00013,2]
[336791818,1725153046339,-16148.70353746,0.00013,2]
[336791820,1725153046351,-1064.7,0.00013,2]
[336791821,1725153046405,-810.7547,0.00013,2]
[336791822,1725153046470,-1595.29402865,0.00013,2]
[336792412,1725153198448,2000.0,0.00023953,120]
[336792413,1725153427068,203.01,0.00010959,2]
[336792415,1725153434168,216.82,0.00010347,2]
[336792416,1725153908421,6069.95274182,0.0001099,2]
[336792417,1725153921227,205.97,9.957e-05,2]
[336792418,1725153951008,1313.16121607,0.00010988,2]
[336792420,1725153953187,162.84,0.00010959,2]
[336792421,1725154039492,205.0,9.8e-05,2]
[336792437,1725154098360,2300.0,0.00022,60]
[336792439,1725154187467,2089.59500086,0.00024,120]
[336792442,1725154207249,-150.0,0.00011688,2]
[336792443,1725154207286,-250.0,0.00011831,2]
[336792444,1725154207317,-54.70913034,0.00011838,2]
[336792450,1725154232412,-3115.524962,0.00011778,2]
[336792451,1725154232422,-145.29086966,0.00011838,2]
[336792452,1725154232432,-179.25711289,0.00011854,2]
[336792453,1725154232443,-237.77288711,0.00011854,2]
[336792454,1725154232453,-198.7,0.00011859,2]
[336792455,1725154232463,-8421.25417426,0.00011871,2]
[336792456,1725154232970,-1765.2517191,0.00011871,2]
[336792457,1725154232982,-415.09721781,0.00011871,2]
[336792458,1725154232993,-308.807424,0.00011871,2]
[336792459,1725154233004,-269.0000005,0.00011871,2]
[336792460,1725154233023,-507.28495151,0.00011871,2]
[336792461,1725154233035,-1266.81451282,0.00011871,2]
[336792462,1725154233045,-300.0,0.000122,4]
[336792463,1725154233054,-576.03,0.00012221,2]
[336792464,1725154233064,-4847.37,0.00012221,2]
[336792465,1725154233074,-205.97,0.00012221,2]
[336792466,1725154233084,-700.0,0.000123,4]
[336792467,1725154233093,-800.0,0.00012344,2]
[336792468,1725154233104,-1000.0,0.000124,4]
[336792469,1725154233114,-185.31,0.00012488,2]
[336792470,1725154233124,-1400.0,0.000125,4]
[336792471,1725154233134,-1800.0,0.000126,4]
[336792472,1725154233143,-300.0,0.000127,4]
[336792473,1725154233153,-150.0,0.00012729,2]
[336792474,1725154233163,-150.0,0.00012729,2]
[336792475,1725154233172,-150.0,0.0001273,2]
[336792476,1725154233181,-150.0,0.0001273,2]
[336792477,1725154233191,-150.0,0.00012733,2]
[336792478,1725154233201,-787.53,0.00012733,2]
[336792479,1725154233210,-499.99,0.00012733,2]
[336792480,1725154233220,-150.0,0.00012741,2]
[336792481,1725154233229,-150.0,0.00012745,2]
[336792482,1725154233238,-150.0,0.00012746,2]
[336792483,1725154233251,-150.0,0.00012747,2]
[336792484,1725154233267,-150.0,0.00012748,2]
[336792485,1725154233277,-150.0,0.00012751,2]
[336792486,1725154233286,-150.0,0.00012751,2]
[336792487,1725154233295,-150.0,0.00012762,2]
[336792488,1725154233305,-150.0,0.00012765,2]
[336792489,1725154233315,-150.0,0.00012769,2]
[336792490,1725154233324,-150.0,0.0001277,2]
[336792491,1725154233333,-150.0,0.00012774,2]
[336792492,1725154233343,-150.0,0.00012775,2]
[336792493,1725154233353,-150.0,0.00012777,2]
[336792494,1725154233363,-150.0,0.00012782,2]
[336792495,1725154233372,-150.0,0.00012782,2]
[336792496,1725154233382,-150.0,0.00012785,2]
[336792497,1725154233392,-150.0,0.00012787,2]
[336792498,1725154233402,-150.0,0.00012791,2]
[336792499,1725154233412,-150.0,0.00012797,2]
[336792500,1725154233422,-150.0,0.000128,2]
[336792501,1725154233432,-300.0,0.000128,4]
[336792502,1725154233441,-584.54074506,0.000128,2]
[336792503,1725154233451,-886.16296936,0.000128,2]
[336792504,1725154233461,-150.0,0.00012802,2]
[336792505,1725154233471,-150.0,0.00012804,2]
[336792506,1725154233480,-150.0,0.00012805,2]
[336792507,1725154233489,-150.0,0.00012808,2]
[336792508,1725154233499,-150.0,0.00012814,2]
[336792509,1725154233509,-150.0,0.00012814,2]
[336792510,1725154233519,-150.0,0.00012815,2]
[336792511,1725154233528,-150.0,0.00012816,2]
[336792512,1725154233538,-150.0,0.00012816,2]
[336792513,1725154233547,-150.0,0.00012816,2]
[336792514,1725154233557,-150.0,0.0001282,2]
[336792515,1725154233567,-150.0,0.00012821,2]
[336792516,1725154233577,-150.0,0.00012827,2]
[336792517,1725154233587,-150.0,0.00012827,2]
[336792518,1725154233596,-150.0,0.00012831,2]
[336792519,1725154233606,-1500.0,0.00012831,2]
[336792520,1725154233616,-150.0,0.00012836,2]
[336792521,1725154233625,-150.0,0.00012838,2]
[336792522,1725154233635,-150.0,0.00012839,2]
[336792523,1725154233646,-150.0,0.00012842,2]
[336792524,1725154233655,-150.0,0.00012844,2]
[336792525,1725154233666,-150.0,0.00012844,2]
[336792526,1725154233676,-1500.0,0.00012847,2]
[336792527,1725154233686,-150.0,0.00012857,2]
[336792528,1725154233697,-150.0,0.00012857,2]
[336792529,1725154233706,-150.0,0.00012859,2]
[336792530,1725154233716,-150.0,0.0001286,2]
[336792531,1725154233725,-150.0,0.00012863,2]
[336792532,1725154233735,-150.0,0.00012863,2]
[336792533,1725154233744,-2950.66575,0.0001287,2]
[336792534,1725154233755,-150.0,0.00012871,2]
[336792535,1725154233767,-150.0,0.00012873,2]
[336792536,1725154233777,-150.0,0.00012873,2]
[336792537,1725154233786,-150.0,0.00012874,2]
[336792538,1725154233796,-150.0,0.00012877,2]
[336792539,1725154233806,-150.0,0.0001288,2]
[336792540,1725154233816,-150.0,0.00012885,2]
[336792541,1725154233826,-150.0,0.00012889,2]
[336792542,1725154233835,-150.0,0.00012889,2]
[336792543,1725154233845,-150.0,0.0001289,2]
[336792544,1725154233854,-150.0,0.0001289,2]
[336792545,1725154233863,-150.0,0.00012891,2]
[336792546,1725154233872,-150.0,0.00012896,2]
[336792547,1725154233882,-150.0,0.00012897,2]
[336792548,1725154233891,-176.88784104,0.000129,2]
[336792549,1725154233900,-300.0,0.000129,4]
[336792550,1725154233909,-28.29997963,0.000129,2]
[336792551,1725154233923,-717.49647761,0.000129,2]
[336792552,1725154233932,-275.89571469,0.000129,2]
[336792553,1725154233943,-582.92504737,0.000129,2]
[336792554,1725154233953,-719.56763967,0.000129,2]
[336792555,1725154233965,-10453.48674865,0.000129,2]
[336792556,1725154233996,-551.29288503,0.000129,2]
[336792557,1725154234008,-2739.25162751,0.000129,2]
[336792562,1725154238556,-651.2,0.000129,2]
[336792563,1725154238571,-13211.4292492,0.000129,2]
[336792564,1725154238584,-150.0,0.00012901,2]
[336792565,1725154238598,-150.0,0.00012902,2]
[336792566,1725154238609,-150.0,0.00012904,2]
[336792567,1725154238620,-150.0,0.00012904,2]
[336792568,1725154238631,-150.0,0.00012911,2]
[336792569,1725154238642,-150.0,0.00012914,2]
[336792570,1725154238652,-1500.0,0.00012916,2]
[336792571,1725154238663,-150.0,0.00012917,2]
[336792572,1725154238675,-150.0,0.00012921,2]
[336792573,1725154238686,-150.0,0.00012923,2]
[336792574,1725154238696,-150.0,0.00012925,2]
[336792575,1725154238707,-150.0,0.00012926,2]
[336792576,1725154238719,-150.0,0.00012927,2]
[336792577,1725154238731,-1500.0,0.00012929,2]
[336792578,1725154238742,-150.0,0.00012931,2]
[336792579,1725154238755,-150.0,0.00012934,2]
[336792580,1725154238769,-150.0,0.0001294,2]
[336792581,1725154238783,-150.0,0.00012944,2]
[336792582,1725154238796,-150.0,0.0001295,2]
[336792583,1725154238809,-150.0,0.00012951,2]
[336792584,1725154238823,-150.0,0.00012954,2]
[336792585,1725154238834,-150.0,0.00012955,2]
[336792586,1725154238846,-150.0,0.00012957,2]
[336792587,1725154238857,-150.0,0.00012959,2]
[336792588,1725154238868,-150.0,0.00012965,2]
[336792589,1725154238880,-150.0,0.00012966,2]
[336792590,1725154238890,-150.0,0.00012966,2]
[336792591,1725154238901,-150.0,0.00012969,2]
[336792592,1725154238912,-150.0,0.00012974,2]
[336792593,1725154238923,-150.0,0.00012976,2]
[336792594,1725154238935,-150.0,0.00012984,2]
[336792595,1725154238946,-150.0,0.00012984,2]
[336792596,1725154238958,-150.0,0.00012986,2]
[336792597,1725154238970,-150.0,0.00012987,2]
[336792598,1725154238982,-1500.0,0.00012989,2]
[336792599,1725154238993,-150.0,0.00012992,2]
[336792600,1725154239005,-172.89381378,0.00012997,2]
[336792601,1725154239019,-150.0,0.00012997,2]
[336792602,1725154239031,-864.4690689,0.00012997,2]
[336792603,1725154239042,-500.0,0.00012999,2]
[336792605,1725154239053,-177.5,0.00012999,2]
[336792607,1725154239064,-500.0,0.00012999,2]
[336792610,1725154239075,-500.0,0.00012999,2]
[336792612,1725154239086,-500.0,0.00012999,2]
[336792614,1725154239097,-500.0,0.00012999,2]
[336792616,1725154239108,-500.0,0.00012999,2]
[336792618,1725154239119,-189.36212033,0.00012999,2]
[336792620,1725154239129,-202.1994155,0.00012999,2]
[336792622,1725154239140,-500.0,0.00012999,2]
[336792624,1725154239150,-355.81316584,0.00012999,2]
[336792626,1725154239161,-500.0,0.00012999,2]
[336792628,1725154239172,-500.0,0.00012999,2]
[336792629,1725154239182,-150.0,0.00012999,2]
[336792630,1725154239193,-538.0,0.00013,2]
[336792631,1725154239204,-1213319.77696618,0.00013,2]
[336792632,1725154239218,-345.0,0.00013,2]
[336792633,1725154239233,-1758.30863727,0.00013,2]
[336792634,1725154239351,-7266.08921481,0.00013,2]
[336792635,1725154239367,-404.44779158,0.00013,2]
[336792636,1725154239382,-2470.41518128,0.00013,2]
[336792637,1725154239397,-1284.68,0.00013,2]
[336792638,1725154239413,-1908.71029907,0.00013,2]
[336792639,1725154239427,-26612.30646997,0.00013,2]
[336792640,1725154239483,-6045.54035109,0.00013,2]
[336792641,1725154239499,-1433.91078519,0.00013,2]
[336792642,1725154239523,-406.14743283,0.00013,2]
[336792644,1725154240494,-1619.03595598,0.00013,2]
[336792648,1725154240617,-1387.96978456,0.00013,2]
[336792649,1725154240629,-1060.90239982,0.00013,2]
[336792717,1725154243593,-1149.44775671,0.00013,2]
[336792718,1725154243605,-817.91371291,0.00013,2]
[336792719,1725154244193,-915.32514366,0.00013,2]
[336792721,1725154244204,-289.34499,0.00013,2]
[336792723,1725154244215,-407.97,0.00013,2]
[336792727,1725154246434,-1454.83956636,0.00013,2]
[336792730,1725154246948,-656.5,0.00013,2]
[336792731,1725154246961,-118753.75999092,0.00013,2]
[336792732,1725154254208,342.38,0.00010959,2]
[336792733,1725154305407,245.35,0.00010959,2]
[336792734,1725154316009,204.46,0.00010959,2]
[336792735,1725154336927,170.38,0.00010959,2]
[336792736,1725154347474,851.93,0.00010959,2]
[336792737,1725154349768,550.0,0.00011,2]
[336792738,1725154400804,933.278723,0.00023999,120]
[336792739,1725154455387,185.37,0.00010023,2]
[336792741,1725154491251,156.05,0.00010959,2]
[336792742,1725154687964,178.9,9.151e-05,2]
[336792744,1725154997571,508.82684,0.00023999,120]
[336792745,1725155003216,505.194538,0.00023999,120]
[336792746,1725155006353,176.1,9.851e-05,2]
[336792765,1725155431693,-250.0,0.00011766,2]
[336792766,1725155431708,-168.8,0.00011769,2]
[336792767,1725155431718,-158.96,0.00011769,2]
[336792768,1725155431728,-1000.0,0.00011771,2]
[336792769,1725155431737,-208.51,0.00011771,2]
[336792770,1725155431747,-9821.81264246,0.00011915,2]
[336792771,1725155431756,-185.32,0.00011915,2]
[336792772,1725155431766,-176.1,0.00012115,2]
[336792773,1725155431775,-166.91,0.00012297,2]
[336792774,1725155431784,-150.0,0.00012699,2]
[336792775,1725155431793,-300.0,0.00012699,2]
[336792776,1725155431803,-187.75,0.000127,2]
[336792777,1725155431812,-3109.3433,0.000127,2]
[336792778,1725155431821,-795.115,0.000127,2]
[336792779,1725155431831,-8123.0284,0.000127,2]
[336792780,1725155431841,-1062.897,0.000127,2]
[336792781,1725155431850,-30394.98709294,0.000127,2]
[336792782,1725155431861,-677.94670912,0.000127,2]
[336792783,1725155431872,-4174.51430948,0.000127,2]
[336792784,1725155431897,-295.4294,0.000127,2]
[336792785,1725155431910,-43486.16858846,0.000127,2]
[336792786,1725155431919,-910.5229,0.000127,2]
[336792787,1725155431929,-499.99,0.00012701,2]
[336792788,1725155431939,-347.24173083,0.00012701,2]
[336792789,1725155431948,-150.0,0.00012727,2]
[336792790,1725155431959,-150.0,0.00012737,2]
[336792791,1725155431968,-150.0,0.00012737,2]
[336792792,1725155431978,-150.0,0.00012738,2]
[336792793,1725155431989,-150.0,0.00012752,2]
[336792794,1725155431998,-150.0,0.00012752,2]
[336792795,1725155432008,-150.0,0.00012755,2]
[336792796,1725155432018,-150.0,0.00012757,2]
[336792797,1725155432030,-150.0,0.00012758,2]
[336792798,1725155432040,-150.0,0.0001276,2]
[336792799,1725155432050,-150.0,0.00012764,2]
[336792800,1725155432061,-150.0,0.00012767,2]
[336792801,1725155432072,-150.0,0.00012774,2]
[336792802,1725155432083,-150.0,0.00012778,2]
[336792803,1725155432094,-150.0,0.00012779,2]
[336792804,1725155432104,-1500.0,0.0001278,2]
[336792805,1725155432113,-150.0,0.00012787,2]
[336792806,1725155432122,-150.0,0.00012792,2]
[336792807,1725155432132,-150.0,0.00012793,2]
[336792808,1725155432142,-150.0,0.00012794,2]
[336792809,1725155432152,-150.0,0.00012796,2]
[336792810,1725155432163,-150.0,0.00012797,2]
[336792811,1725155432175,-150.0,0.00012797,2]
[336792812,1725155432188,-500.0,0.00012799,2]
[336792813,1725155432197,-500.0,0.00012799,2]
[336792814,1725155432209,-500.0,0.00012799,2]
[336792815,1725155432219,-500.0,0.00012799,2]
[336792816,1725155432230,-500.0,0.00012799,2]
[336792817,1725155432240,-500.0,0.00012799,2]
[336792818,1725155432249,-500.0,0.00012799,2]
[336792819,1725155432258,-500.0,0.00012799,2]
[336792820,1725155432267,-500.0,0.00012799,2]
[336792821,1725155432277,-500.0,0.00012799,2]
[336792822,1725155432286,-500.0,0.00012799,2]
[336792823,1725155432295,-353.60265892,0.00012799,2]
[336792824,1725155432305,-500.0,0.00012799,2]
[336792825,1725155432314,-265.6887516,0.00012799,2]
[336792826,1725155432323,-16190.46267022,0.000128,2]
[336792827,1725155432335,-1178.81576721,0.000128,2]
[336792828,1725155437686,-1954.87549614,0.000128,2]
[336792830,1725155437840,-1106.44534,0.000128,2]
[336792831,1725155437999,-813.93883366,0.000128,2]
[336792838,1725155442688,-1364.2199562,0.000127,2]
[336792840,1725155442700,-522.1097438,0.000127,2]
[336792841,1725155442712,-311.77013331,0.000128,2]
[336792846,1725155443231,-1723.80973372,0.000128,2]
[336792847,1725155443258,-424.09780833,0.000128,2]
[336792848,1725155443270,-486.18500001,0.000128,2]
[336792849,1725155443281,-1464.06406546,0.000128,2]
[336792850,1725155443293,-935.898057,0.000128,2]
[336792851,1725155443494,-3939.92439593,0.000128,2]
[336792852,1725155443506,-694.5375725,0.000128,2]
[336792853,1725155443517,-448.95942964,0.000128,2]
[336792854,1725155443528,-12295.49214234,0.000128,2]
[336792856,1725155445754,-454.5958,0.000127,2]
[336792857,1725155445764,-205.25404475,0.000128,2]
[336792858,1725155445776,-300.0,0.000128,2]
[336792859,1725155445787,-1782.48588767,0.000128,2]
[336792860,1725155445799,-7767.81612531,0.000128,2]
[336792861,1725155446042,-17670.71230535,0.000128,2]
[336792862,1725155446054,-9479.93277704,0.000128,2]
[336792863,1725155446065,-10619.93434431,0.000128,2]
[336792864,1725155446151,-19467.58779765,0.000128,2]
[336792865,1725155446163,-13109.52489308,0.000128,2]
[336792866,1725155446175,-66753.39703524,0.000128,2]
[336792867,1725155446187,-23076.45085748,0.000128,2]
[336792868,1725155446199,-442.79258183,0.000128,2]